bitfinex/quotes_SOLUSD_20250517
["timestamp","ask_amount","ask_price","bid_price","bid_amount"]
[1747521720665,57.43396381,165.52,165.47,4.79720646]
[1747521720867,6.04229607,165.5,165.47,4.79720646]
[1747521722662,26.0,165.52,165.47,4.79720646]
[1747521722965,6.5928,165.55,165.47,4.79720646]
[1747521722966,18.64964886,165.55,165.47,4.79720646]
[1747521723374,6.04047115,165.55,165.47,4.79720646]
[1747521724368,6.04047115,165.55,165.48,6.04302634]
[1747521731475,16.32891007,165.55,165.48,6.04302634]
[1747521732773,28.93808778,165.54,165.47,4.79720646]
[1747521732970,10.28843892,165.53,165.47,24.29720646]
[1747521733163,10.28843892,165.51,165.47,4.79720646]
[1747521733876,10.28843892,165.5,165.47,4.79720646]
[1747521735373,6.04266118,165.49,165.47,4.79720646]
[1747521736149,16.3311001,165.49,165.47,4.79720646]
[1747521736343,28.93808778,165.48,165.47,4.79720646]
[1747521737980,24.6926752,165.48,165.47,4.79720646]
[1747521738187,6.04302634,165.48,165.47,4.79720646]
[1747521738393,6.04280792,165.49,165.47,4.79720646]
[1747521738676,32.04234829,165.5,165.47,4.79720646]
[1747521738916,16.32963991,165.53,165.47,4.79720646]
[1747521739053,6.04120099,165.53,165.47,4.79720646]
[1747521739255,6.04120099,165.53,165.47,30.34051778]
[1747521742884,6.04120099,165.53,165.47,24.29720646]
[1747521743081,16.32963991,165.53,165.47,24.29720646]
[1747521743383,6.04120099,165.53,165.47,24.29720646]
[1747521743578,16.32963991,165.53,165.47,24.29720646]
[1747521744188,10.28843892,165.52,165.47,24.29720646]
[1747521744782,10.28843892,165.52,165.47,4.79720646]
[1747521744991,36.28843892,165.52,165.47,4.79720646]
[1747521745500,6.04120099,165.53,165.47,4.79720646]
[1747521745680,16.32963991,165.53,165.47,4.79720646]
[1747521747669,10.28843892,165.52,165.47,4.79720646]
[1747521749091,31.43264238,165.53,165.47,4.79720646]
[1747521751390,16.33036992,165.51,165.47,4.79720646]
[1747521753072,28.93808778,165.5,165.47,4.79720646]
[1747521753273,10.28843892,165.48,165.47,4.79720646]
[1747521753473,28.93808778,165.48,165.47,4.79720646]
[1747521755088,34.98111412,165.48,165.47,4.79720646]
[1747521770781,54.46111412,165.48,165.47,4.79720646]
[1747521771901,59.33187998,165.48,165.47,4.79720646]
[1747521772618,54.46111412,165.48,165.47,4.79720646]
[1747521774317,54.46111412,165.48,165.47,1e-08]
[1747521774479,44.64964886,165.44,165.38,1.5028]
[1747521774803,18.64964886,165.41,165.38,1.5028]
[1747521774997,18.64964886,165.41,165.34,7.9857]
[1747521774998,10.28843892,165.4,165.34,7.9857]
[1747521775204,10.28843892,165.39,165.34,7.9857]
[1747521776104,6.04668037,165.38,165.34,7.9857]
[1747521776427,31.45182022,165.38,165.34,7.9857]
[1747521779514,6.0474117,165.36,165.34,1.6261]
[1747521782504,16.33585062,165.36,165.34,1.6261]
[1747521783196,6.0474117,165.36,165.34,1.6261]
[1747521783390,6.04708969,165.37,165.34,1.6261]
[1747521783592,6.04594921,165.4,165.34,1.6261]
[1747521783835,43.44048995,165.41,165.35,6.2323]
[1747521784030,43.44048995,165.41,165.36,19.46]
[1747521784324,49.48618546,165.41,165.36,19.46]
[1747521788826,16.33548493,165.37,165.34,1.6261]
[1747521789637,6.04704601,165.37,165.34,1.6261]
[1747521795823,21.16466105,165.37,165.31,6.2323]
[1747521796327,28.93808778,165.36,165.31,6.2323]
[1747521796501,10.28843892,165.35,165.31,6.2323]
[1747521796705,10.28843892,165.34,165.3,1.6615]
[1747521796929,10.28843892,165.33,165.27,45.4218]
[1747521797127,18.64964886,165.36,165.27,45.4218]
[1747521797328,18.64964886,165.33,165.27,45.4218]
[1747521797529,6.0488749,165.32,165.27,45.4218]
[1747521799311,6.0488749,165.32,165.27,25.9618]
[1747521799509,16.33731382,165.32,165.24,6.05167758]
[1747521799710,10.28843892,165.31,165.24,25.51167758]
[1747521800437,16.33731382,165.32,165.24,25.51167758]
[1747521800629,6.0488749,165.32,165.24,25.51167758]
[1747521801034,6.0488749,165.32,165.23,6.0521697]
[1747521801035,31.45950109,165.32,165.23,6.0521697]
[1747521801352,10.28843892,165.31,165.24,19.46]
[1747521803346,6.04960677,165.3,165.24,19.46]
[1747521803930,6.04960677,165.3,165.24,25.51177875]
[1747521805146,6.04960677,165.3,165.24,19.46]
[1747521805345,6.04960677,165.3,165.23,6.05207863]
[1747521805545,6.04960677,165.3,165.24,19.46]
[1747521806746,6.04960677,165.3,165.24,25.51178702]
[1747521807833,6.04960677,165.3,165.24,19.46]
[1747521808029,6.04960677,165.3,165.24,25.51155256]
[1747521809138,6.04960677,165.3,165.24,19.46]
[1747521809448,16.33804569,165.3,165.24,19.46]
[1747521809750,16.33804569,165.3,165.22,33.09048309]
[1747521810251,16.33804569,165.3,165.23,19.46]
[1747521812556,18.64964886,165.29,165.23,19.46]
[1747521813054,16.33804569,165.3,165.23,25.51213193]
[1747521813557,6.04960677,165.3,165.23,25.51213193]
[1747521814154,6.04924082,165.31,165.23,25.51213193]
[1747521814937,16.33767974,165.31,165.23,25.51213193]
[1747521817556,6.04924082,165.31,165.23,25.51213193]
[1747521823459,16.33767974,165.31,165.23,25.51213193]
[1747521827173,6.04924082,165.31,165.23,40.64255618]
[1747521828074,6.04924082,165.31,165.23,25.51213193]
[1747521828768,16.33767974,165.31,165.23,25.51213193]
[1747521831175,6.04924082,165.31,165.23,25.51213193]
[1747521833077,16.33767974,165.31,165.23,25.51213193]
[1747521837172,32.04902743,165.32,165.23,25.51213193]
[1747521837347,10.28843892,165.35,165.24,1.21006729]
[1747521837549,26.0,165.34,165.24,1.21006729]
[1747521837952,26.0,165.33,165.24,1.21006729]
[1747521838174,6.04777744,165.35,165.25,8.1247]
[1747521838354,6.04777744,165.35,165.26,1.20973024]
[1747521838674,32.04777744,165.35,165.27,19.44]
[1747521839178,6.04704601,165.37,165.28,7.26001784]
[1747521839378,6.04704601,165.37,165.29,19.44]
[1747521839678,32.04704601,165.37,165.31,8.1522]
[1747521840584,32.04704601,165.37,165.31,14.20110055]
[1747521844288,32.04704601,165.37,165.31,14.14087829]
[1747521847887,32.04704601,165.37,165.31,8.09197774]
[1747521848089,10.28843892,165.33,165.29,19.42]
[1747521848390,10.28843892,165.32,165.27,4.33907427]
[1747521848595,10.28843892,165.32,165.26,19.42]
[1747521848961,10.28843892,165.31,165.26,19.42]
[1747521849169,10.28843892,165.3,165.26,19.42]
[1747521849965,16.33838677,165.3,165.26,19.42]
[1747521850164,6.04994785,165.3,165.26,19.42]
[1747521850587,6.04961315,165.3,165.26,19.42]
[1747521850787,10.28843892,165.33,165.26,25.47100706]
[1747521850968,6.04850904,165.33,165.26,25.47100706]
[1747521851162,16.33694796,165.33,165.26,25.47100706]
[1747521851987,26.0,165.33,165.26,25.47100706]
[1747521853087,32.04862385,165.33,165.26,26.68085716]
[1747521853396,10.28843892,165.35,165.26,26.68085716]
[1747521853569,26.0,165.36,165.26,26.68085716]
[1747521854606,26.0,165.36,165.26,41.80853475]
[1747521854823,26.0,165.36,165.27,7.6559]
[1747521855097,26.0,165.36,165.28,1.20951538]
[1747521855307,26.0,165.36,165.29,19.42]
[1747521855510,26.0,165.36,165.3,1.20951591]
[1747521855715,26.0,165.36,165.31,6.04924082]
[1747521855883,26.0,165.36,165.32,19.42]
[1747521856207,32.04743469,165.36,165.32,19.42]
[1747521858503,26.0,165.36,165.32,25.46862285]
[1747521861010,26.0,165.36,165.32,19.42]
[1747521861207,32.0475039,165.36,165.32,19.42]
[1747521878421,32.04704601,165.37,165.32,19.42]
[1747521881013,23.91809756,165.43,165.34,26.0]
[1747521881212,23.91809756,165.43,165.35,19.38]
[1747521881409,6.04481728,165.44,165.36,1.2090217]
[1747521881606,16.3332562,165.44,165.36,1.2090217]
[1747521881818,6.04481728,165.44,165.36,1.2090217]
[1747521882017,10.28843892,165.43,165.35,19.38]
[1747521882206,10.28843892,165.42,165.35,19.38]
[1747521882407,10.28843892,165.42,165.34,45.3]
[1747521882723,10.28843892,165.42,165.35,19.38]
[1747521882724,6.0455837,165.41,165.35,19.38]
[1747521884134,16.33402262,165.41,165.35,19.38]
[1747521884536,10.28843892,165.4,165.35,19.38]
[1747521884909,10.28843892,165.38,165.32,19.38]
[1747521885837,6.04704601,165.37,165.32,19.38]
[1747521889341,6.04679231,165.38,165.32,19.38]
[1747521890026,6.04631477,165.39,165.32,25.42869403]
[1747521890643,16.33475369,165.39,165.32,25.42869403]
[1747521890948,10.28843892,165.38,165.32,19.38]
[1747521892357,6.04704601,165.37,165.3,14.78698456]
[1747521892560,6.04704601,165.37,165.31,19.38]
[1747521896159,10.28843892,165.36,165.3,8.73771052]
[1747521896657,10.28843892,165.35,165.3,8.73771052]
[1747521897539,36.28843892,165.34,165.3,8.73771052]
[1747521898136,6.04850904,165.33,165.3,8.73771052]
[1747521898749,32.04825692,165.34,165.3,8.73771052]
[1747521898949,26.0,165.34,165.3,14.78723162]
[1747521899266,26.0,165.34,165.3,8.73771052]
[1747521900465,26.0,165.34,165.3,14.78730171]
[1747521900851,26.0,165.34,165.3,34.16730171]
[1747521901148,26.0,165.34,165.3,28.11771052]
[1747521901535,26.0,165.34,165.3,34.16729933]
[1747521901742,6.04791826,165.35,165.3,34.16729933]
[1747521902770,16.33585062,165.36,165.3,34.16729933]
[1747521903135,6.0474117,165.36,165.3,34.16729933]
[1747521903343,32.04715444,165.37,165.3,34.16729933]
[1747521904381,26.0,165.37,165.3,34.16729933]
[1747521904548,32.04710267,165.37,165.3,34.16729933]
[1747521906050,10.28843892,165.35,165.3,8.73771052]
[1747521906370,36.28843892,165.34,165.3,8.73771052]
[1747521907569,26.0,165.34,165.3,8.73771052]
[1747521908070,6.04850904,165.33,165.3,8.73771052]
[1747521910070,26.0,165.31,165.26,23.72223901]
[1747521910249,36.28843892,165.31,165.26,4.34223901]
[1747521911150,26.0,165.31,165.26,4.34223901]
[1747521911659,10.28843892,165.29,165.26,4.34223901]
[1747521911846,10.28843892,165.29,165.22,4.34223901]
[1747521912053,16.33914382,165.27,165.22,4.34223901]
[1747521912375,6.0507049,165.27,165.22,4.34223901]
[1747521912671,26.0,165.28,165.22,10.39464567]
[1747521914065,26.0,165.28,165.22,19.89488777]
[1747521915265,32.05040764,165.28,165.22,15.55264876]
[1747521915471,42.33884656,165.28,165.22,9.5002421]
[1747521916676,42.33884656,165.28,165.21,19.36]
[1747521916854,10.28843892,165.27,165.21,38.74]
[1747521917683,6.05107103,165.26,165.21,38.74]
[1747521918390,16.33925083,165.27,165.21,44.79280203]
[1747521919124,6.05081191,165.27,165.21,44.79280203]
[1747521919478,10.28843892,165.26,165.21,38.74]
[1747521919654,6.05143721,165.25,165.21,38.74]
[1747521919856,6.05143721,165.25,165.19,6.05335373]
[1747521920087,6.05143721,165.25,165.19,25.43335373]
[1747521920768,6.05107103,165.26,165.18,6.05400169]
[1747521920974,10.28843892,165.24,165.17,8.1618]
[1747521921166,10.28843892,165.24,165.17,27.5418]
[1747521921657,54.93808778,165.25,165.17,14.21612248]
[1747521921868,54.93808778,165.25,165.17,33.59612248]
[1747521922277,26.0,165.21,165.17,8.1618]
[1747521922478,26.0,165.22,165.17,19.38]
[1747521923066,26.0,165.21,165.17,19.38]
[1747521923766,32.05271527,165.22,165.17,19.38]
[1747521924170,42.34115419,165.22,165.16,19.38]
[1747521924375,42.34115419,165.22,165.15,19.38]
[1747521924777,10.28843892,165.21,165.14,19.38]
[1747521924992,10.28843892,165.21,165.13,14.21753371]
[1747521925201,26.0,165.22,165.14,20.59088096]
[1747521925371,42.34110819,165.22,165.14,19.38]
[1747521925572,10.28843892,165.21,165.14,19.38]
[1747521926209,6.05326876,165.2,165.14,25.4354423]
[1747521926705,18.64964886,165.21,165.14,25.4354423]
[1747521927069,28.93808778,165.21,165.14,19.38]
[1747521927468,18.64964886,165.17,165.11,19.38]
[1747521927668,10.28843892,165.17,165.1,19.38]
[1747521928410,6.0547348,165.16,165.1,19.38]
[1747521928705,6.0547348,165.16,165.1,25.43678858]
[1747521929096,6.0547348,165.16,165.1,19.38]
[1747521929693,6.0547348,165.16,165.1,6.05684286]
[1747521930703,16.34317372,165.16,165.09,33.50856063]
[1747521930914,16.34317372,165.16,165.09,14.12856063]
[1747521931907,6.05436822,165.17,165.09,14.12856063]
[1747521932116,10.28843892,165.16,165.09,14.12856063]
[1747521932512,10.28843892,165.15,165.09,14.12866083]
[1747521932815,10.28843892,165.15,165.08,19.38]
[1747521933315,54.93808778,165.13,165.06,19.38]
[1747521933515,10.28843892,165.12,165.07,19.38]
[1747521933814,6.05656834,165.11,165.07,19.38]
[1747521934309,6.05656834,165.11,165.06,6.05826563]
[1747521934516,16.34470543,165.12,165.06,6.05826563]
[1747521934888,10.28843892,165.12,165.06,6.05826563]
[1747521935091,36.28843892,165.16,165.06,7.26970085]
[1747521935410,16.34251704,165.18,165.06,22.41570836]
[1747521935597,16.34251704,165.18,165.06,67.71570836]
[1747521935794,26.0,165.17,165.07,19.38]
[1747521936009,26.0,165.17,165.08,1.21105179]
[1747521936387,26.0,165.17,165.09,6.05730207]
[1747521936576,48.31808778,165.19,165.09,6.05730207]
[1747521936781,38.02964886,165.19,165.1,1.21107234]
[1747521937013,80.37174615,165.19,165.11,19.38]
[1747521937890,10.28843892,165.18,165.11,19.38]
[1747521938205,16.34251507,165.18,165.12,6.05620155]
[1747521940098,10.28843892,165.18,165.12,6.05620155]
[1747521940416,16.34250515,165.18,165.12,6.05620155]
[1747521940617,10.28843892,165.18,165.12,6.05620155]
[1747521940914,16.34248008,165.18,165.12,6.05620155]
[1747521942419,10.28843892,165.18,165.12,6.05620155]
[1747521942987,55.66843892,165.19,165.12,6.05620155]
[1747521943920,26.0,165.19,165.12,30.05915242]
[1747521944094,28.93808778,165.23,165.12,30.05915242]
[1747521944414,19.38,165.24,165.12,75.35915242]
[1747521944585,19.38,165.24,165.13,38.02964886]
[1747521944912,51.43195434,165.24,165.14,1.21052798]
[1747521945442,19.38,165.24,165.14,1.21052798]
[1747521946141,19.38,165.24,165.15,21.19285497]
[1747521946341,43.99697107,165.25,165.16,1.21049918]
[1747521946542,43.99697107,165.25,165.17,19.38]
[1747521947417,43.99697107,165.25,165.18,6.05400169]
[1747521949846,26.0,165.25,165.18,7.26450379]
[1747521950441,6.05082907,165.27,165.18,75.75540802]
[1747521950615,32.05082907,165.27,165.18,75.75540802]
[1747521951224,26.0,165.27,165.18,75.75540802]
[1747521953658,6.0497009,165.3,165.19,19.38]
[1747521953811,6.0497009,165.3,165.2,1.21006309]
[1747521954557,6.0497009,165.3,165.21,6.05290236]
[1747521955015,6.0497009,165.3,165.22,1.21007295]
[1747521955216,6.0497009,165.3,165.23,19.36]
[1747521956142,6.0497009,165.3,165.23,25.41186995]
[1747521960926,6.04924082,165.31,165.23,25.41186995]
[1747521961127,6.04850904,165.33,165.24,8.80847518]
[1747521962442,6.04850904,165.33,165.25,6.05143721]
[1747521962640,6.04850904,165.33,165.26,1.20980953]
[1747521962832,6.04827971,165.34,165.26,1.20980953]
[1747521963344,6.04777859,165.35,165.26,1.20980953]
[1747521964461,28.93808778,165.34,165.26,1.20980953]
[1747521964637,10.28843892,165.32,165.26,19.36]
[1747521966748,26.0,165.34,165.27,1.21003902]
[1747521967248,6.04777744,165.35,165.27,1.21003902]
[1747521968864,6.04777744,165.35,165.28,6.05033881]
[1747521971366,6.04777744,165.35,165.27,7.26067811]
[1747521972922,82.09129866,165.36,165.27,22.38744037]
[1747521974335,50.04378839,165.36,165.28,1.5023]
[1747521974656,32.04692982,165.38,165.29,7.80235382]
[1747521974852,32.04692982,165.38,165.29,53.10235382]
[1747521975769,32.04692982,165.38,165.3,6.04960677]
[1747521976453,42.33536874,165.38,165.3,6.04960677]
[1747521976651,32.04692982,165.38,165.3,6.04960677]
[1747521976966,32.04692982,165.38,165.31,1.20953668]
[1747521977266,32.04692982,165.38,165.32,19.34]
[1747521978471,32.04692982,165.38,165.32,25.38860654]
[1747521980358,6.0455837,165.41,165.33,1.20944835]
[1747521980867,32.0455837,165.41,165.33,1.20944835]
[1747521981473,57.44798187,165.41,165.32,64.64]
[1747521981686,10.28843892,165.4,165.32,64.64]
[1747521982040,10.28843892,165.39,165.32,64.64]
[1747521982674,10.28843892,165.4,165.32,70.6887441]
[1747521982872,57.44798187,165.41,165.32,70.6887441]
[1747521985889,57.44798187,165.41,165.32,25.3887441]
[1747521988984,47.15954295,165.41,165.32,25.3887441]
[1747521989162,42.33402262,165.41,165.32,25.3887441]
[1747521989362,32.0455837,165.41,165.32,25.3887441]
[1747521989564,32.0455837,165.41,165.34,1.5643]
[1747521990590,32.0455837,165.41,165.34,7.61226225]
[1747521993686,32.0455837,165.41,165.35,1.2092058]
[1747521993889,6.04528875,165.42,165.35,1.2092058]
[1747521995296,6.0448528,165.43,165.36,6.0474117]
[1747521996996,6.0448528,165.43,165.37,1.20907934]
[1747521997598,6.0448528,165.43,165.38,19.32]
[1747521998789,36.28843892,165.46,165.38,26.57553417]
[1747521999776,6.04416955,165.45,165.38,26.57553417]
[1747522004900,32.04379255,165.46,165.38,28.16763417]
[1747522009105,32.04379255,165.46,165.35,32.4665]
[1747522009106,10.28843892,165.43,165.37,19.32]
[1747522009289,10.28843892,165.42,165.37,19.32]
[1747522010218,6.0455837,165.41,165.37,19.32]
[1747522010909,16.33402262,165.41,165.37,19.32]
[1747522011214,16.33402262,165.41,165.35,19.32]
[1747522011907,6.0455837,165.41,165.35,19.32]
[1747522012914,6.0455837,165.41,165.35,25.36774855]
[1747522014712,32.04535798,165.42,165.35,25.36768828]
[1747522023220,6.0448528,165.43,165.35,25.36768828]
[1747522025128,10.28843892,165.41,165.34,1.5921]
[1747522025298,26.0,165.42,165.33,64.6]
[1747522025299,10.28843892,165.4,165.33,64.6]
[1747522025598,10.28843892,165.4,165.33,19.3]
[1747522025794,10.28843892,165.41,165.33,25.34840836]
[1747522026210,10.28843892,165.41,165.33,6.04840836]
[1747522026410,10.28843892,165.41,165.34,19.3]
[1747522026809,6.04594921,165.4,165.34,19.3]
[1747522027434,6.04594921,165.4,165.34,25.34810299]
[1747522028539,6.0455837,165.41,165.34,25.34810299]
[1747522029623,6.0455837,165.41,165.35,19.3]
[1747522030222,10.28843892,165.4,165.35,19.3]
[1747522031752,10.28843892,165.38,165.31,51.4501]
[1747522031936,10.28843892,165.38,165.31,57.49923929]
[1747522032244,6.04668037,165.38,165.31,70.7501]
[1747522032939,6.04642321,165.39,165.31,76.79919273]
[1747522033241,89.35189128,165.42,165.32,1.20936674]
[1747522033938,31.44798187,165.41,165.31,81.14143174]
[1747522035141,6.04631477,165.39,165.31,81.14143174]
[1747522036219,21.15954295,165.41,165.31,76.79919273]
[1747522036431,31.44798187,165.41,165.31,76.79919273]
[1747522037043,16.33402262,165.41,165.31,76.79919273]
[1747522037411,10.28843892,165.4,165.31,76.79919273]
[1747522037628,10.28843892,165.39,165.32,19.3]
[1747522038438,6.04668037,165.38,165.31,51.4501]
[1747522038747,6.04668037,165.38,165.31,70.7501]
[1747522039047,31.45182022,165.38,165.3,22.07364148]
[1747522039284,10.28843892,165.37,165.3,40.1642]
[1747522040151,10.28843892,165.37,165.3,19.3]
[1747522040347,10.28843892,165.34,165.28,4.34223901]
[1747522040524,42.33694796,165.33,165.28,4.34223901]
[1747522040720,10.28843892,165.31,165.28,4.34223901]
[1747522041934,6.04960677,165.3,165.25,19.3]
[1747522042138,6.04935842,165.31,165.25,19.3]
[1747522042344,32.04863626,165.33,165.25,26.56135285]
[1747522042746,25.34814257,165.35,165.25,52.56135285]
[1747522043835,25.34814257,165.35,165.25,67.68994589]
[1747522046048,25.34814257,165.35,165.25,112.98994589]
[1747522046443,35.63658149,165.35,165.25,112.98994589]
[1747522048366,6.04814257,165.35,165.26,1.6321]
[1747522048565,6.04814257,165.35,165.27,1.20965914]
[1747522048764,5.54814257,165.35,165.27,1.20965914]
[1747522050161,5.54814257,165.35,165.28,6.05033881]
[1747522051964,32.04750344,165.36,165.3,6.04960677]
[1747522052341,32.04750344,165.36,165.31,19.3]
[1747522052742,31.99208762,165.36,165.31,19.3]
[1747522053471,35.9833556,165.4,165.31,25.34911875]
[1747522053856,6.04594921,165.4,165.32,1.515]
[1747522054657,32.04594921,165.4,165.32,1.515]
[1747522055165,32.04594921,165.4,165.33,6.04850904]
[1747522057168,6.045596,165.41,165.34,1.20935167]
[1747522058176,46.0407818,165.42,165.34,1.20935167]
[1747522059073,56.32922072,165.42,165.34,1.20935167]
[1747522059375,10.28843892,165.4,165.32,7.5638172]
[1747522059579,10.28843892,165.4,165.33,19.28]
[1747522059882,28.93808778,165.41,165.33,19.28]
[1747522060977,6.04594921,165.4,165.33,25.32850484]
[1747522064474,6.04594921,165.4,165.33,19.28]
[1747522064777,16.33438813,165.4,165.33,19.28]
[1747522065376,16.33438813,165.4,165.32,7.56365124]
[1747522065548,16.33438813,165.4,165.33,19.28]
[1747522066775,6.04594921,165.4,165.33,25.3283993]
[1747522067876,6.04594921,165.4,165.34,1.20933267]
[1747522068652,6.0455837,165.41,165.34,7.25721359]
[1747522068970,6.0455837,165.41,165.33,19.28]
[1747522068971,6.0455837,165.41,165.33,25.32839999]
[1747522073376,6.0455837,165.41,165.34,1.20923274]
[1747522074385,6.0455837,165.41,165.35,6.04777744]
[1747522076096,6.0455837,165.41,165.34,1.20923274]
[1747522076300,16.33402262,165.41,165.33,64.58]
[1747522076488,31.44798187,165.41,165.33,70.6285087]
[1747522078667,31.44798187,165.41,165.33,64.58]
[1747522078867,31.44798187,165.41,165.33,19.28]
[1747522080682,6.0455837,165.41,165.33,25.32846354]
[1747522082770,21.15954295,165.41,165.33,19.28]
[1747522083270,21.15954295,165.41,165.34,19.28]
[1747522084172,21.15954295,165.41,165.32,2.72444776]
[1747522084371,10.28843892,165.36,165.29,10.53843901]
[1747522084576,10.28843892,165.35,165.29,4.34223901]
[1747522084793,10.28843892,165.3,165.29,4.34223901]
[1747522084995,36.28843892,165.3,165.29,4.34223901]
[1747522085383,54.93808778,165.3,165.29,4.34223901]
[1747522086067,54.93808778,165.3,165.24,18.18472013]
[1747522086068,44.64964886,165.29,165.24,9.5002421]
[1747522086273,6.05107103,165.26,165.24,9.5002421]
[1747522086605,16.33920745,165.27,165.24,9.5002421]
[1747522087100,59.77472226,165.29,165.24,9.5002421]
[1747522087101,10.28843892,165.28,165.24,9.5002421]
[1747522087396,10.28843892,165.28,165.21,6.0528842]
[1747522087600,10.28843892,165.27,165.21,6.0528842]
[1747522087899,32.05024167,165.29,165.21,6.0528842]
[1747522088081,10.28843892,165.28,165.21,6.0528842]
[1747522088787,10.28843892,165.27,165.21,6.0528842]
[1747522088979,10.28843892,165.26,165.2,6.05316679]
[1747522089193,10.28843892,165.26,165.21,19.28]
[1747522089573,6.05048321,165.28,165.21,19.28]
[1747522089770,10.28843892,165.27,165.21,19.28]
[1747522090905,10.28843892,165.27,165.21,25.3325894]
[1747522091096,16.33811175,165.3,165.21,25.3325894]
[1747522091476,26.0,165.29,165.21,25.3325894]
[1747522092806,26.0,165.29,165.21,40.46484531]
[1747522094702,26.0,165.29,165.22,8.7867211]
[1747522094885,42.3385395,165.29,165.22,7.5766]
[1747522095298,42.3385395,165.29,165.2,6.05315016]
[1747522095299,10.28843892,165.27,165.2,6.05315016]
[1747522095486,10.28843892,165.26,165.2,19.28]
[1747522095680,10.28843892,165.26,165.19,25.33358554]
[1747522096702,16.3396147,165.26,165.19,25.33358554]
[1747522097503,10.28843892,165.25,165.18,31.35192676]
[1747522098105,16.3396147,165.26,165.18,31.35192676]
[1747522098301,10.28843892,165.28,165.18,31.35192676]
[1747522098504,42.33852379,165.29,165.19,1.21035967]
[1747522098689,32.05008487,165.29,165.2,6.05326876]
[1747522098886,32.05008487,165.29,165.21,1.21023092]
[1747522098887,26.0,165.29,165.21,1.21023092]
[1747522099343,32.05000274,165.29,165.21,1.21023092]
[1747522099814,26.0,165.29,165.21,1.21023092]
[1747522100506,21.47415606,165.32,165.24,26.0]
[1747522100717,21.47415606,165.32,165.25,27.00689318]
[1747522100883,21.47415606,165.32,165.26,6.05107103]
[1747522101209,27.52306744,165.32,165.26,6.05107103]
[1747522102295,21.47415606,165.32,165.26,6.05107103]
[1747522103586,21.47415606,165.32,165.26,21.17874862]
[1747522103791,21.47415606,165.32,165.27,1.20978963]
[1747522104402,21.47415606,165.32,165.26,21.17874862]
[1747522105015,26.0,165.36,165.27,1.20976779]
[1747522105314,32.04756019,165.36,165.27,1.20976779]
[1747522106197,42.33599911,165.36,165.28,6.05033881]
[1747522106685,32.04756019,165.36,165.28,6.05033881]
[1747522112291,26.0,165.36,165.28,21.17618585]
[1747522112887,19.28,165.37,165.29,2.87136958]
[1747522113096,10.28843892,165.4,165.29,2.87136958]
[1747522113397,36.28843892,165.4,165.29,48.17136958]
[1747522114419,42.33438813,165.4,165.3,6.04960677]
[1747522114621,42.33438813,165.4,165.31,19.26]
[1747522115832,42.33438813,165.4,165.32,6.0488749]
[1747522120714,6.04668037,165.38,165.32,6.0488749]
[1747522121443,10.28843892,165.37,165.29,46.9617]
[1747522121650,10.28843892,165.35,165.29,66.2217]
[1747522121839,10.28843892,165.35,165.29,20.9217]
[1747522122323,10.28843892,165.36,165.29,20.9217]
[1747522122531,10.28843892,165.37,165.29,7.71153924]
[1747522122732,6.0474117,165.36,165.29,26.97153924]
[1747522125937,36.28843892,165.34,165.26,6.0509262]
[1747522126114,36.28843892,165.33,165.27,19.26]
[1747522127115,6.0488749,165.32,165.27,19.26]
[1747522127315,6.0488749,165.32,165.27,25.31070427]
[1747522128915,42.33703578,165.33,165.27,25.31070427]
[1747522129116,32.04859686,165.33,165.27,25.31070427]
[1747522129372,26.0,165.33,165.27,25.31070427]
[1747522129743,32.04852673,165.33,165.27,25.31070427]
[1747522133621,32.04852673,165.33,165.27,19.26]
[1747522134647,32.04852673,165.33,165.27,25.31045502]
[1747522135458,10.28843892,165.31,165.22,45.3]
[1747522135620,10.28843892,165.28,165.22,19.26]
[1747522135822,10.28843892,165.26,165.21,12.01793901]
[1747522136027,10.28843892,165.26,165.21,4.34223901]
[1747522136323,26.0,165.27,165.21,4.34223901]
[1747522136324,10.28843892,165.25,165.21,4.34223901]
[1747522137021,6.05180343,165.24,165.21,4.34223901]
[1747522138926,6.05180343,165.24,165.17,31.33545143]
[1747522141149,6.05107103,165.26,165.17,31.33545143]
[1747522142555,16.33950995,165.26,165.17,31.33545143]
[1747522143659,6.05107103,165.26,165.17,31.33545143]
[1747522143857,16.33950995,165.26,165.17,31.33545143]
[1747522144962,16.33950995,165.26,165.17,76.63545143]
[1747522146443,6.05107103,165.26,165.17,76.63545143]
[1747522146649,16.33950995,165.26,165.18,25.31371234]
[1747522147662,6.05107103,165.26,165.18,25.31371234]
[1747522149546,16.33950995,165.26,165.18,25.31371234]
[1747522156190,6.05107103,165.26,165.18,25.31371234]
[1747522157276,32.04997277,165.29,165.2,1.638]
[1747522157574,6.04997277,165.29,165.21,27.21018324]